bitfinex/quotes_ETHUSD_20251120
["timestamp","ask_amount","ask_price","bid_price","bid_amount"]
[1763601370718,0.4549,3038.7,3038.0,0.001]
[1763601370959,0.4549,3038.7,3038.0,0.101]
[1763601371460,3.74581913,3038.7,3038.0,3.39253231]
[1763601372494,0.79436049,3038.6,3038.0,3.39253231]
[1763601373276,4.65264927,3038.9,3038.3,0.1]
[1763601373574,0.002,3038.7,3038.4,0.1]
[1763601373933,0.002,3038.7,3038.0,0.001]
[1763601373934,0.4672,3038.5,3038.0,0.001]
[1763601374165,0.4549,3038.6,3038.0,3.39262594]
[1763601374341,0.114,3038.7,3038.0,3.64308853]
[1763601374662,0.114,3038.7,3038.3,0.1]
[1763601374852,0.002,3038.7,3038.3,0.1]
[1763601376264,0.002,3038.7,3038.3,3.39131264]
[1763601376470,0.002,3038.7,3038.6,0.1132]
[1763601376633,0.002,3038.7,3038.6,0.1264]
[1763601376975,0.002,3038.7,3038.4,0.1]
[1763601377133,0.002,3038.7,3038.3,0.112]
[1763601377134,0.9241,3038.7,3038.3,0.112]
[1763601377333,0.4672,3038.4,3038.0,3.2926228]
[1763601377926,0.4549,3038.6,3038.1,0.1]
[1763601378164,3.7459579,3038.6,3038.1,0.1]
[1763601378480,3.7459579,3038.6,3038.0,0.001]
[1763601378481,0.37479579,3038.5,3038.0,0.001]
[1763601378831,0.4549,3038.4,3038.0,0.001]
[1763601379464,0.37479579,3038.5,3038.0,0.001]
[1763601379638,0.002,3038.7,3038.0,0.001]
[1763601379836,0.4549,3038.5,3038.0,0.001]
[1763601380435,0.4549,3038.5,3038.0,0.101]
[1763601380664,3.29288096,3038.7,3038.0,0.101]
[1763601380873,7.94565456,3038.7,3038.0,0.101]
[1763601381162,1.26066546,3038.6,3038.0,0.101]
[1763601382275,3.29109758,3038.5,3038.0,0.101]
[1763601382638,1.26066546,3038.6,3038.0,3.39263456]
[1763601382840,0.4549,3038.5,3038.0,0.001]
[1763601383134,0.4549,3038.5,3038.0,3.29257916]
[1763601383334,0.5669,3038.5,3038.0,0.001]
[1763601383768,1.45326034,3038.5,3038.0,0.001]
[1763601384275,0.4549,3038.4,3038.0,0.001]
[1763601384474,3.74612005,3038.4,3038.0,0.001]
[1763601387070,0.4965,3038.1,3038.0,0.001]
[1763601387568,0.9481,3038.1,3038.0,0.001]
[1763601388764,0.88636034,3038.5,3038.0,0.0142]
[1763601388962,0.002,3038.7,3038.0,0.1142]
[1763601389270,0.4536,3038.7,3038.0,3.40583343]
[1763601389582,0.002,3038.7,3038.6,0.0132]
[1763601392984,0.002,3038.7,3038.5,0.1]
[1763601393586,0.002,3038.7,3038.4,3.29119783]
[1763601393587,0.4965,3038.6,3038.4,3.29119783]
[1763601393878,0.9481,3038.6,3038.0,0.001]
[1763601394084,0.4965,3038.3,3038.0,0.001]
[1763601394302,0.4965,3038.1,3038.0,0.001]
[1763601394653,0.9481,3038.1,3038.0,0.001]
[1763601395684,0.4965,3038.1,3038.0,0.001]
[1763601396975,3.29131667,3038.3,3038.0,0.001]
[1763601397178,3.74291667,3038.3,3038.0,0.001]
[1763601397379,0.4516,3038.3,3038.0,0.001]
[1763601397890,0.112,3038.6,3038.0,0.001]
[1763601398186,0.112,3038.5,3038.1,0.1]
[1763601398706,0.30747931,3038.6,3038.4,0.1132]
[1763601398997,3.29289349,3038.7,3038.2,0.1]
[1763601399149,0.4635,3038.3,3038.0,0.001]
[1763601399581,0.82653728,3038.6,3038.0,0.001]
[1763601399793,0.82653728,3038.6,3038.0,3.29262597]
[1763601400583,0.82653728,3038.6,3038.0,6.5842652]
[1763601400783,0.002,3038.7,3038.5,0.0132]
[1763601400984,0.002,3038.7,3038.3,0.1]
[1763601401387,0.002,3038.7,3038.0,6.5842652]
[1763601401388,0.002,3038.7,3038.5,0.1]
[1763601401591,0.002,3038.7,3038.0,6.7962652]
[1763601401983,0.002,3038.7,3038.3,0.1]
[1763601402183,0.40752486,3038.7,3038.3,0.1]
[1763601402396,0.87402486,3038.7,3038.3,0.1]
[1763601402590,0.87402486,3038.7,3038.2,0.1]
[1763601402803,0.40752486,3038.7,3038.2,3.3914224]
[1763601402968,0.002,3038.7,3038.2,3.3914224]
[1763601403692,0.002,3038.7,3038.5,0.1]
[1763601406114,0.002,3038.7,3038.6,0.0132]
[1763601406403,0.002,3038.7,3038.6,0.1132]
[1763601407973,0.002,3038.7,3038.6,0.1]
[1763601408192,0.4655,3038.7,3038.2,3.29138376]
[1763601408515,0.002,3038.7,3038.0,3.39262118]
[1763601408710,0.002,3038.7,3038.3,0.1]
[1763601408902,0.002,3038.7,3038.3,3.39128976]
[1763601409099,0.4635,3038.4,3038.0,0.101]
[1763601409717,0.93,3038.4,3038.0,0.101]
[1763601409912,0.93,3038.4,3038.0,3.39260476]
[1763601410504,0.4635,3038.1,3038.0,0.001]
[1763601410678,0.4665,3038.3,3038.0,3.29263923]
[1763601410891,3.29288096,3038.7,3038.0,3.29263923]
[1763601410892,0.002,3038.7,3038.4,0.1]
[1763601411108,0.112,3038.6,3038.4,0.1]
[1763601413422,0.002,3038.7,3038.4,6.68240246]
[1763601413624,0.4635,3038.5,3038.4,0.1]
[1763601413819,0.4635,3038.5,3038.3,0.1]
[1763601415622,0.4635,3038.4,3038.0,0.113]
[1763601415923,0.4635,3038.4,3038.0,3.50463426]
[1763601417797,0.4635,3038.1,3038.0,0.001]
[1763601418198,0.4635,3038.1,3038.0,3.29263923]
[1763601418598,0.4665,3038.4,3038.0,3.29263923]
[1763601420032,0.112,3038.5,3038.1,0.1]
[1763601420537,0.30747127,3038.6,3038.0,0.001]
[1763601420700,0.5805,3038.7,3038.0,0.101]
[1763601420905,0.30747127,3038.6,3038.0,0.101]
[1763601421404,0.77397127,3038.6,3038.0,0.101]
[1763601421831,0.002,3038.7,3038.1,6.58306178]
[1763601422132,0.002,3038.7,3038.3,0.1]
[1763601422526,0.30949994,3038.7,3038.3,0.1]
[1763601422727,0.77599994,3038.7,3038.3,0.1]
[1763601424137,0.30949994,3038.7,3038.3,6.68253063]
[1763601424436,0.002,3038.7,3038.3,3.39121641]
[1763601424636,0.002,3038.7,3038.3,6.58253063]
[1763601424827,0.002,3038.7,3038.6,0.1132]
[1763601425739,0.4655,3038.7,3038.3,3.29221641]
[1763601425941,0.4655,3038.7,3038.3,6.58353063]
[1763601426142,0.4655,3038.7,3038.3,0.001]
[1763601426143,0.4635,3038.4,3038.3,0.001]
[1763601426340,0.4685,3038.7,3038.3,0.001]
[1763601427119,0.4635,3038.4,3038.3,0.001]
[1763601427657,0.93,3038.4,3038.3,0.001]
[1763601429711,0.39757777,3038.7,3038.3,0.0142]
[1763601429911,0.39757777,3038.7,3038.3,0.001]
[1763601429912,0.4796,3038.4,3038.3,0.001]
[1763601430343,0.9423,3038.4,3038.3,0.001]
[1763601430961,0.4796,3038.4,3038.3,0.001]
[1763601431150,0.77234002,3038.7,3038.3,0.001]
[1763601431444,0.4796,3038.4,3038.3,0.001]
[1763601432517,0.9423,3038.4,3038.3,0.001]
[1763601433214,3.40488265,3038.7,3038.3,0.001]
[1763601433439,0.30756819,3038.6,3038.3,0.001]
[1763601433629,0.4796,3038.4,3038.3,0.001]
[1763601434112,0.9423,3038.4,3038.3,0.001]
[1763601435448,4.65302672,3038.4,3038.3,0.001]
[1763601435636,6.26848014,3038.4,3038.3,0.001]
[1763601435827,7.31218659,3038.4,3038.3,0.001]
[1763601438264,7.71769059,3038.4,3038.3,0.001]
[1763601438425,0.4796,3038.0,3037.6,0.001]
[1763601438623,0.6742,3037.7,3037.6,0.001]
[1763601438827,6.58414536,3037.6,3037.3,0.001]
[1763601439037,0.4796,3037.4,3037.3,0.001]
[1763601439269,1.36182083,3037.4,3037.3,0.001]
[1763601440449,2.15681347,3037.4,3037.3,0.001]
[1763601440653,1.36182083,3037.4,3037.3,0.001]
[1763601440978,5.25358209,3037.4,3037.3,0.001]
[1763601441138,2.43736067,3037.4,3037.3,0.001]
[1763601441337,0.4796,3037.4,3037.3,0.001]
[1763601441747,0.9423,3037.4,3037.3,0.001]
[1763601441962,4.23458945,3037.4,3037.3,0.001]
[1763601443764,4.54039266,3037.4,3037.3,0.001]
[1763601444063,5.4473853,3037.4,3037.3,0.001]
[1763601444266,6.33254195,3037.4,3037.3,0.001]
[1763601444469,6.33236707,3037.4,3037.3,0.001]
[1763601445592,6.73787107,3037.4,3037.3,0.001]
[1763601446688,6.73787107,3037.4,3036.9,0.001]
[1763601446689,0.4976,3037.0,3036.6,0.001]
[1763601446894,0.90699264,3037.3,3036.0,0.001]
[1763601446895,1.31249664,3036.6,3036.0,0.001]
[1763601447183,0.4976,3036.1,3036.0,0.001]
[1763601447385,0.6096,3036.1,3036.0,0.001]
[1763601447587,1.0669,3036.1,3036.0,0.001]
[1763601447765,0.4976,3036.1,3036.0,0.001]
[1763601447973,0.112,3036.2,3036.0,0.001]
[1763601448276,0.90699264,3036.4,3036.0,0.001]
[1763601448465,0.112,3036.3,3036.0,0.001]
[1763601449099,0.4976,3036.1,3036.0,0.001]
[1763601449604,0.4573,3036.2,3036.0,0.001]
[1763601449756,0.4976,3036.1,3036.0,0.001]
[1763601450219,0.9549,3036.1,3036.0,0.001]
[1763601451064,5.15559179,3036.1,3036.0,0.001]
[1763601451467,1.40459264,3036.1,3036.0,0.001]
[1763601451684,5.15559179,3036.1,3036.0,0.001]
[1763601452003,6.01171005,3036.1,3036.0,0.001]
[1763601452173,6.12371005,3036.1,3036.0,0.001]
[1763601453498,0.90699264,3036.0,3035.9,0.001]
[1763601453707,1.86189264,3036.0,3035.9,0.001]
[1763601454010,1.97389264,3036.0,3035.9,0.001]
[1763601454804,2.91563356,3036.0,3035.9,0.001]
[1763601455006,0.90699264,3035.8,3035.6,0.001]
[1763601455220,3.99113314,3035.7,3035.6,0.001]
[1763601455508,4.44843314,3035.7,3035.6,0.001]
[1763601456492,3.99113314,3035.7,3035.6,0.001]
[1763601456697,4.89812578,3035.7,3035.6,0.001]
[1763601456896,5.71734107,3035.7,3035.6,0.001]
[1763601457293,6.17464107,3035.7,3035.6,0.001]
[1763601458427,2.42320793,3035.7,3035.6,0.001]
[1763601458722,0.112,3035.7,3035.6,0.001]
[1763601459497,0.1856,3036.1,3035.6,0.0192]
[1763601459698,0.112,3036.0,3035.6,0.0192]
[1763601460210,1.01899264,3036.0,3035.6,0.0192]
[1763601460521,1.01899264,3036.0,3035.6,0.001]
[1763601460703,0.44983626,3035.9,3035.6,0.001]
[1763601461022,0.45183626,3035.9,3035.6,0.001]
[1763601461220,0.90603626,3035.9,3035.6,0.001]
[1763601461421,3.29402463,3035.8,3035.6,0.001]
[1763601461635,0.4501,3035.7,3035.6,0.001]
[1763601461841,3.29402463,3035.8,3035.6,0.001]
[1763601462023,3.74580567,3035.9,3035.6,0.001]
[1763601462425,7.49397508,3035.9,3035.6,0.001]
[1763601462743,0.4501,3035.7,3035.6,0.001]
[1763601463239,0.9043,3035.7,3035.6,0.001]
[1763601463541,0.112,3035.8,3035.6,0.0192]
[1763601464109,3.29598447,3035.9,3035.6,0.0192]
[1763601464310,0.112,3035.8,3035.6,0.0192]
[1763601465137,0.112,3035.8,3035.6,0.001]
[1763601465912,3.40604577,3035.8,3035.6,0.001]
[1763601467234,0.112,3035.8,3035.6,0.001]
[1763601467641,3.40603162,3035.8,3035.6,0.001]
[1763601469658,0.112,3035.8,3035.6,0.001]
[1763601470052,0.30788857,3035.9,3035.7,0.0182]
[1763601470256,0.002,3035.9,3035.8,0.0182]
[1763601472249,0.002,3035.9,3035.8,3.43042463]
[1763601477480,0.002,3035.9,3035.8,3.31222463]
[1763601477694,0.002,3035.9,3035.8,3.29402463]
[1763601477847,0.002,3035.9,3035.8,0.0182]
[1763601478490,0.002,3035.9,3035.8,0.1192]
[1763601478696,0.002,3035.9,3035.8,0.1374]
[1763601479766,0.002,3035.9,3035.8,3.43142463]
[1763601480158,0.002,3035.9,3035.8,4.37135751]
[1763601480444,0.002,3035.9,3035.8,4.77686151]
[1763601481147,0.002,3035.9,3035.8,4.74392127]
[1763601481554,0.002,3035.9,3035.8,4.77686151]
[1763601481780,0.002,3035.9,3035.8,3.54342463]
[1763601483449,0.002,3035.9,3035.8,3.31322463]
[1763601483676,0.002,3035.9,3035.8,0.001]
[1763601483956,1.0919,3035.9,3035.8,0.001]
[1763601484964,0.002,3035.9,3035.8,0.0192]
[1763601485183,0.002,3035.9,3035.8,0.1374]
[1763601485883,0.002,3035.9,3035.8,4.33841727]
[1763601486254,0.002,3035.9,3035.8,4.45041727]
[1763601486787,0.002,3035.9,3035.8,4.43221727]
[1763601488565,0.002,3035.9,3035.8,4.45041727]
[1763601488952,0.002,3035.9,3035.8,4.32021727]
[1763601489504,0.002,3035.9,3035.8,3.29502463]
[1763601489993,0.4729,3035.9,3035.8,3.29502463]
[1763601490200,0.002,3035.9,3035.8,3.29502463]
[1763601490382,0.002,3035.9,3035.8,0.001]
[1763601491606,0.002,3035.9,3035.8,0.1192]
[1763601492378,0.002,3035.9,3035.8,3.41322463]
[1763601492584,0.002,3035.9,3035.8,3.31322463]
[1763601493693,0.002,3035.9,3035.8,3.41322463]
[1763601493897,0.002,3035.9,3035.8,3.43142463]
[1763601494070,0.002,3035.9,3035.8,3.46436487]
[1763601494272,0.002,3035.9,3035.8,3.31322463]
[1763601494773,0.002,3035.9,3035.8,3.41322463]
[1763601496696,0.4729,3035.9,3035.8,3.29502463]
[1763601496896,0.9481,3035.9,3035.8,0.001]
[1763601498198,0.4729,3035.9,3035.8,0.001]
[1763601499700,0.002,3035.9,3035.8,0.001]
[1763601499900,0.4729,3035.9,3035.8,0.001]
[1763601500103,0.9481,3035.9,3035.8,0.001]
[1763601500307,5.00353459,3035.9,3035.8,0.001]
[1763601500476,8.29745072,3035.9,3035.6,0.001]
[1763601500804,0.4709,3035.7,3035.6,0.001]
[1763601501107,0.77755205,3035.7,3035.5,0.001]
[1763601501284,1.17327447,3035.6,3035.5,0.001]
[1763601501484,1.47992652,3035.6,3035.5,0.001]
[1763601502702,1.00472652,3035.6,3035.5,0.001]
[1763601502928,1.25275205,3035.6,3035.5,0.001]
[1763601503095,0.9461,3035.6,3035.5,0.001]
[1763601503289,0.4772,3035.9,3035.5,0.001]
[1763601503801,0.30815205,3035.9,3035.5,0.001]
[1763601504001,0.002,3035.9,3035.8,0.1]
[1763601504912,0.002,3035.9,3035.8,3.39402463]
[1763601505889,0.002,3035.9,3035.8,3.41422463]
[1763601506094,0.002,3035.9,3035.8,3.39402463]
[1763601506325,0.002,3035.9,3035.8,0.1]
[1763601507104,0.002,3035.9,3035.7,0.1]
[1763601509237,0.002,3035.9,3035.8,0.0202]
[1763601510323,0.002,3035.9,3035.8,0.1202]
[1763601510517,0.002,3035.9,3035.8,0.0202]
[1763601510755,0.002,3035.9,3035.8,0.1404]
[1763601511132,0.002,3035.9,3035.8,3.43442463]
[1763601511951,0.002,3035.9,3035.8,4.74692127]
[1763601512353,0.002,3035.9,3035.8,4.77986151]
[1763601513064,0.002,3035.9,3035.8,4.74692127]
[1763601513224,0.002,3035.9,3035.8,4.77986151]
[1763601514021,0.002,3035.9,3035.8,4.89186151]
[1763601514273,0.002,3035.9,3035.8,4.85892127]
[1763601514438,0.002,3035.9,3035.8,4.89186151]
[1763601514972,0.002,3035.9,3035.8,4.85892127]
[1763601515543,0.002,3035.9,3035.8,4.89186151]
[1763601516526,0.002,3035.9,3035.8,5.02375304]
[1763601516754,0.002,3036.3,3036.2,0.505504]
[1763601516953,0.002,3036.3,3036.2,0.545904]
[1763601517364,0.002,3036.3,3036.2,0.5788399]
[1763601517727,0.002,3036.3,3036.2,4.89142321]
[1763601518969,0.002,3036.3,3036.2,12.51436089]
[1763601519170,0.002,3036.3,3036.2,13.16852499]
[1763601520689,1e-08,3036.6,3036.5,0.1202]
[1763601520985,1e-08,3036.6,3036.5,0.525704]
[1763601521288,1e-08,3036.6,3036.5,0.545904]
[1763601521439,1e-08,3036.6,3036.5,0.740504]
[1763601521674,1e-08,3036.6,3036.5,0.80574715]
[1763601522107,1e-08,3036.6,3036.5,4.09901242]
[1763601522306,1e-08,3036.6,3036.5,5.02620506]
[1763601523012,1e-08,3036.6,3036.5,5.05913771]
[1763601523719,1e-08,3036.6,3036.5,5.02620506]
[1763601524105,1e-08,3036.6,3036.5,4.48850106]
[1763601524304,1e-08,3036.6,3036.5,4.63343371]
[1763601524625,1e-08,3036.6,3036.5,5.03893771]
[1763601524812,1e-08,3036.6,3036.5,5.00600506]
[1763601525610,0.48370001,3036.6,3036.5,3.39326527]
[1763601525776,0.48370001,3036.6,3036.5,3.50526527]
[1763601525984,0.94480001,3036.6,3036.5,4.41225791]
[1763601526735,0.48370001,3036.6,3036.5,4.41225791]
[1763601526937,1e-08,3036.6,3036.5,4.43245791]
[1763601527602,1e-08,3036.6,3036.5,4.41225791]
[1763601528721,0.94480001,3036.6,3036.5,4.20025791]
[1763601530236,1e-08,3036.6,3036.5,4.20025791]
[1763601530538,1e-08,3036.6,3036.5,4.30025791]
[1763601531213,0.48370001,3036.6,3036.5,4.30025791]
[1763601531415,0.94480001,3036.6,3036.5,4.20025791]
[1763601531616,0.94480001,3036.6,3036.4,3.29337149]
[1763601531815,0.9448,3036.5,3036.4,4.20036413]
[1763601533118,1e-08,3036.6,3036.4,4.20036413]
[1763601533119,1e-08,3036.6,3036.5,0.1]
[1763601534220,1e-08,3036.6,3036.5,0.1202]
[1763601534527,1e-08,3036.6,3036.5,1.06012529]
[1763601534913,1e-08,3036.6,3036.5,4.35339056]
[1763601535353,1e-08,3036.6,3036.5,4.75889456]
[1763601535512,1e-08,3036.6,3036.5,4.77909456]
[1763601536654,1e-08,3036.6,3036.5,4.75889456]
[1763601537963,1e-08,3036.6,3036.5,4.65889456]
[1763601538140,1e-08,3036.6,3036.5,4.74616191]
[1763601538664,1e-08,3036.6,3036.5,4.77909456]
[1763601538962,1e-08,3036.6,3036.5,4.74616191]
[1763601540679,1e-08,3036.6,3036.5,8.53616191]
[1763601542531,1e-08,3036.6,3036.5,8.51596191]
[1763601542744,0.002,3037.0,3036.9,0.505504]
[1763601542957,0.002,3037.0,3036.9,9.16763432]
[1763601543574,0.002,3037.0,3036.9,12.46046582]
[1763601543739,0.002,3037.0,3036.9,12.48066582]
[1763601544458,0.002,3037.0,3036.9,4.72552814]
[1763601544766,0.4857,3037.0,3036.9,4.41182414]
[1763601544947,0.002,3037.0,3036.9,4.41182414]
[1763601545154,0.4857,3037.0,3036.9,4.41182414]
[1763601545754,0.9468,3037.0,3036.9,4.41182414]
[1763601546849,0.9468,3037.0,3036.9,4.29982414]
[1763601547050,0.002,3037.0,3036.9,4.43202414]
[1763601547250,0.002,3037.0,3036.9,4.87045645]
[1763601548445,0.5019,3037.0,3036.9,4.81732814]
[1763601549782,0.9574,3037.0,3036.9,4.41182414]
[1763601551471,0.002,3037.0,3036.9,4.43202414]
[1763601552684,0.002,3037.0,3036.9,4.87045645]
[1763601552982,0.002,3037.0,3036.9,4.85772814]
[1763601553186,0.002,3037.0,3036.9,12.51359413]
[1763601553363,0.002,3037.0,3036.9,15.95366582]
[1763601557666,0.002,3037.3,3037.0,1.64239664]
[1763601557990,1e-08,3037.4,3037.3,4.90569664]
[1763601558150,1e-08,3037.4,3037.3,12.67355829]
[1763601558356,1e-08,3037.4,3037.3,12.66083432]
[1763601559893,1e-08,3037.4,3037.3,15.95323217]
[1763601561086,1e-08,3037.4,3037.3,15.33572817]
[1763601561288,1e-08,3037.4,3037.3,15.54772817]
[1763601561589,1e-08,3037.4,3037.3,15.95323217]
[1763601562693,1e-08,3037.4,3037.3,12.48023217]
[1763601564089,1e-08,3037.4,3037.3,16.27023217]
[1763601564589,1e-08,3037.4,3037.3,16.25003217]
[1763601564793,1e-08,3037.4,3037.3,8.49489449]
[1763601564957,1e-08,3037.4,3037.3,8.60689449]
[1763601565290,0.95540001,3037.4,3037.3,3.50439785]
[1763601565586,1e-08,3037.4,3037.3,4.83709449]
[1763601565801,1e-08,3037.4,3037.3,3.96302582]
[1763601566094,1e-08,3037.4,3037.3,4.81689449]
[1763601566469,1e-08,3037.4,3037.3,4.83709449]
[1763601566894,1e-08,3037.4,3037.3,4.81689449]
[1763601567589,1e-08,3037.4,3037.3,4.81789449]
[1763601568490,1e-08,3037.4,3037.3,4.87101846]
[1763601568889,0.002,3037.8,3037.7,0.505504]
[1763601569089,0.002,3037.8,3037.7,9.20055396]
[1763601569399,0.002,3037.8,3037.7,12.97783432]
[1763601570098,0.002,3037.8,3037.7,12.95763432]
[1763601570812,0.002,3038.4,3037.8,14.4799204]
[1763601571109,0.002,3038.8,3038.5,3.473]
[1763601571411,0.002,3038.8,3038.6,1.56489664]
[1763601572409,0.002,3038.8,3038.6,0.657904]
[1763601572617,0.002,3038.8,3038.6,0.637704]
[1763601572920,0.002,3038.8,3038.6,4.81548591]
[1763601573983,0.002,3038.8,3038.6,4.8483958]
[1763601574184,0.002,3038.8,3038.6,4.83568591]
[1763601577825,0.002,3038.8,3038.6,4.81548591]
[1763601578212,0.4568,3038.7,3038.6,4.81548591]
[1763601578415,0.9314,3038.7,3038.6,4.81548591]
[1763601578597,0.9314,3038.7,3038.6,4.29798191]
[1763601578797,0.9314,3038.7,3038.6,4.40998191]
[1763601578997,0.9314,3038.7,3038.6,4.81548591]
[1763601579294,0.9314,3038.7,3038.6,4.40998191]
[1763601579691,0.4568,3038.7,3038.6,4.81548591]
[1763601579891,0.002,3039.0,3038.6,12.80177019]
[1763601580103,0.4746,3039.8,3039.2,0.1]
[1763601580397,0.1925,3041.1,3040.0,0.505504]
[1763601580600,0.1925,3041.1,3040.0,0.617504]
[1763601580899,1.111,3040.1,3040.0,0.617504]
[1763601581306,1.111,3040.1,3039.3,0.90699264]
[1763601581488,0.4746,3040.0,3039.8,0.405504]
[1763601581691,0.4746,3040.0,3039.9,0.212]
[1763601582118,0.9294,3040.0,3039.9,0.212]
[1763601582319,0.1925,3041.1,3040.5,3.28893274]
[1763601582522,0.1925,3041.1,3041.0,0.1]
[1763601582733,0.6473,3041.1,3040.5,6.68986548]
[1763601582918,0.4548,3040.6,3040.5,0.112]
[1763601583324,0.9294,3040.6,3040.5,0.212]
[1763601583642,0.9294,3040.6,3038.8,3.29077267]
[1763601583844,0.1996,3039.6,3039.5,0.1]
[1763601584047,0.1996,3039.6,3039.5,0.212]
[1763601584198,1.129,3039.6,3039.5,0.212]
[1763601584398,1.129,3039.6,3039.5,4.40900744]
[1763601585242,1.129,3039.6,3039.5,4.81451144]
[1763601585243,0.6544,3039.6,3039.5,4.81451144]
[1763601585600,0.1996,3039.9,3039.8,0.505504]
[1763601585849,0.1996,3040.1,3039.9,0.405504]
[1763601586012,0.4746,3040.9,3040.1,0.425704]
[1763601586338,3.28938944,3042.0,3040.1,0.425704]
[1763601586339,0.4746,3041.2,3041.0,3.79389597]
[1763601586536,0.4746,3041.2,3041.0,3.90589597]
[1763601586712,1.1219,3041.1,3041.0,3.90589597]
[1763601588336,0.1925,3041.1,3041.0,3.90589597]
[1763601588635,0.002,3042.0,3041.2,0.405504]
[1763601588818,0.002,3042.0,3041.8,0.1]
[1763601589197,0.9294,3041.9,3041.8,0.1]
[1763601589398,0.9294,3041.9,3041.4,0.112]
[1763601589622,0.4548,3041.5,3041.4,0.112]
[1763601589823,0.4548,3041.5,3041.4,0.517504]
[1763601590027,0.9294,3041.5,3041.4,0.112]
[1763601590507,0.9294,3041.5,3041.4,3.49995949]
[1763601591428,0.9294,3041.5,3041.4,3.39995949]
[1763601591626,0.9294,3041.5,3041.4,0.112]
[1763601592005,0.9294,3041.5,3041.4,3.49995949]
[1763601595012,0.9294,3041.5,3041.4,0.405504]
[1763601595359,0.9294,3041.5,3041.1,0.1]
[1763601595511,0.4548,3041.2,3041.1,0.1]
[1763601595948,0.9294,3041.2,3041.1,0.1]
[1763601597114,0.4746,3041.6,3041.5,0.1]
[1763601597414,0.9294,3041.6,3041.5,0.1]
[1763601598720,0.4746,3041.9,3041.5,0.1]
[1763601598922,0.4746,3041.9,3041.8,0.1]
[1763601599148,0.002,3042.0,3041.9,0.1]
[1763601599330,0.002,3042.0,3041.9,1.33269664]
[1763601599518,0.002,3042.0,3041.9,1.43269664]
[1763601599714,0.002,3042.0,3041.9,1.41249664]
[1763601599951,0.002,3042.0,3041.9,1.52449664]
[1763601600352,0.9314,3042.0,3041.9,1.11899264]
[1763601600558,0.9314,3042.0,3041.9,1.00699264]
[1763601600732,0.9314,3042.0,3041.9,1.11899264]
[1763601601146,0.9314,3042.0,3041.9,4.40641168]
[1763601601454,3.39761682,3043.6,3041.9,4.40641168]
[1763601601455,0.1996,3044.0,3042.4,0.405504]
[1763601601651,0.1996,3044.0,3043.7,0.1]
[1763601601857,0.1996,3044.0,3043.4,0.112]
[1763601602162,0.4548,3043.5,3043.3,0.112]
[1763601602373,0.4548,3043.4,3043.3,0.212]
[1763601603216,0.1996,3044.0,3043.9,0.1]
[1763601603452,0.1996,3044.4,3044.3,0.1]
[1763601603655,0.1996,3044.4,3044.3,0.212]
[1763601603819,0.6544,3044.4,3044.3,0.212]
[1763601604155,1.129,3044.4,3044.3,0.212]
[1763601604364,1.129,3044.4,3044.3,0.112]
[1763601604563,1.129,3044.4,3043.8,0.1]
[1763601604750,0.4746,3044.3,3043.8,0.1]
[1763601604952,0.6544,3043.9,3043.5,0.1]
[1763601605170,0.6544,3043.9,3043.6,0.1]
[1763601605171,0.1996,3043.9,3043.6,0.1]
[1763601605342,0.1996,3043.9,3042.5,0.90699264]
[1763601605343,0.002,3042.7,3042.5,0.90699264]
[1763601605544,0.002,3042.7,3042.6,0.657904]
[1763601605837,0.002,3042.7,3042.6,1.42981406]
[1763601606853,0.002,3042.7,3042.6,0.657904]
[1763601607365,0.002,3042.7,3042.6,4.85155936]
[1763601608230,0.002,3042.7,3042.6,4.71935936]
[1763601608435,0.002,3042.7,3042.6,4.83135936]
[1763601608859,0.002,3042.7,3042.6,4.85155936]
[1763601609458,0.1996,3043.9,3043.8,0.1]
[1763601609643,0.1996,3043.9,3043.8,0.212]
[1763601609956,1.1507,3043.9,3043.8,0.212]
[1763601610153,1.1507,3043.9,3043.7,0.1]
[1763601610356,0.6536,3043.9,3043.8,0.212]
[1763601610555,0.192,3043.9,3043.8,0.212]
[1763601611087,0.1996,3044.4,3044.3,0.1]
[1763601611292,0.1996,3044.4,3044.3,3.49682738]
[1763601611571,1.1507,3044.4,3044.3,3.49682738]
[1763601611743,1.1507,3044.4,3044.3,0.1]
[1763601611948,1.1507,3044.4,3044.3,0.212]
[1763601612185,1.1507,3044.4,3044.0,0.1]
[1763601612477,0.4971,3044.3,3044.1,0.212]
[1763601612972,0.4971,3044.3,3044.2,0.1]
[1763601613338,0.9511,3044.3,3044.2,0.1]
[1763601613539,0.9511,3044.3,3044.1,0.1]
[1763601613761,0.9511,3044.2,3044.1,0.1]
[1763601614846,0.9511,3044.2,3044.0,0.112]
[1763601615185,0.9511,3044.1,3043.8,0.1]
[1763601615366,0.9511,3044.1,3043.5,0.112]
[1763601615367,7.06723012,3044.1,3043.5,0.112]
[1763601615538,1.20382301,3044.0,3043.4,0.1]
[1763601615738,0.646,3043.5,3043.4,0.1]
[1763601616153,0.646,3043.5,3043.0,0.1]
[1763601616154,1.1431,3043.5,3043.0,0.1]
[1763601616338,0.454,3043.1,3043.0,0.1]
[1763601616544,0.454,3043.1,3042.8,0.112]
[1763601616750,0.646,3042.9,3042.8,0.112]
[1763601616959,0.646,3042.9,3042.7,0.1]
[1763601617151,0.405504,3042.5,3041.2,0.1]